[Event "Late-Titled-Tuesday-Blitz-January-16-2024"]
[Site "Chess.com"]
[Date "2024.01.16"]
[Round "6"]
[White "Rdeux42"]
[Black "pirulillo"]
[Result "0-1"]
[WhiteElo "2456"]
[BlackElo "2280"]
[TimeControl "180+1"]
[EndTime "15:03:56 PST"]
[Termination "pirulillo won on time"]

1. e4 {[%clk 0:03:00.9]} 1... c5 {[%clk 0:02:59.1]} 2. Nf3 {[%clk 0:03:00.1]}
2... e6 {[%clk 0:02:59.6]} 3. d4 {[%clk 0:03:00.7]} 3... cxd4 {[%clk 0:03:00.4]}
4. Nxd4 {[%clk 0:03:01.3]} 4... Nf6 {[%clk 0:03:00.9]} 5. Nc3 {[%clk 0:03:00.5]}
5... Nc6 {[%clk 0:03:01.3]} 6. Nxc6 {[%clk 0:02:56.3]} 6... bxc6 {[%clk
0:03:02.2]} 7. Bd3 {[%clk 0:02:56.2]} 7... e5 {[%clk 0:02:57.1]} 8. O-O {[%clk
0:02:56]} 8... Bc5 {[%clk 0:02:55.9]} 9. Kh1 {[%clk 0:02:50.2]} 9... d6 {[%clk
0:02:51.8]} 10. h3 {[%clk 0:02:46.1]} 10... Qe7 {[%clk 0:02:40.4]} 11. f4 {[%clk
0:02:45.1]} 11... exf4 {[%clk 0:02:38.2]} 12. Bxf4 {[%clk 0:02:46]} 12... Nd7
{[%clk 0:02:38]} 13. Qe2 {[%clk 0:02:36.7]} 13... Ne5 {[%clk 0:02:34.5]} 14.
Rad1 {[%clk 0:02:34.9]} 14... O-O {[%clk 0:02:27.1]} 15. Be3 {[%clk 0:02:09.3]}
15... Bxe3 {[%clk 0:02:15.8]} 16. Qxe3 {[%clk 0:02:10.2]} 16... Be6 {[%clk
0:02:13.4]} 17. Ne2 {[%clk 0:02:04.1]} 17... Rab8 {[%clk 0:02:00]} 18. b3 {[%clk
0:01:55.9]} 18... a5 {[%clk 0:01:56.9]} 19. Nd4 {[%clk 0:01:43.1]} 19... a4
{[%clk 0:01:43.7]} 20. Nf5 {[%clk 0:01:36.1]} 20... Bxf5 {[%clk 0:01:42.4]} 21.
Rxf5 {[%clk 0:01:32]} 21... axb3 {[%clk 0:01:39.5]} 22. axb3 {[%clk 0:01:31.3]}
22... c5 {[%clk 0:01:36.5]} 23. Rdf1 {[%clk 0:01:19.5]} 23... Rb4 {[%clk
0:01:26.1]} 24. Qg3 {[%clk 0:00:47.1]} 24... Qa7 {[%clk 0:00:44.6]} 25. Rf6
{[%clk 0:00:28.1]} 25... Rb6 {[%clk 0:00:40.1]} 26. h4 {[%clk 0:00:24.1]} 26...
Nxd3 {[%clk 0:00:30.8]} 27. cxd3 {[%clk 0:00:25]} 27... Rxb3 {[%clk 0:00:29.5]}
28. Rxd6 {[%clk 0:00:23.5]} 28... c4 {[%clk 0:00:29.7]} 29. e5 {[%clk
0:00:18.4]} 29... c3 {[%clk 0:00:24]} 30. e6 {[%clk 0:00:18]} 30... c2 {[%clk
0:00:24]} 31. exf7+ {[%clk 0:00:13.6]} 31... Kh8 {[%clk 0:00:23.4]} 32. Rc6
{[%clk 0:00:13.1]} 32... Rb1 {[%clk 0:00:17.4]} 33. Re1 {[%clk 0:00:11]} 33...
Qe7 {[%clk 0:00:14.8]} 34. Rxc2 {[%clk 0:00:04.1]} 34... Rxe1+ {[%clk
0:00:12.6]} 35. Kh2 {[%clk 0:00:01.3]} 35... Re3 {[%clk 0:00:13.1]} 0-1

[Event "Late-Titled-Tuesday-Blitz-January-16-2024"]
[Site "Chess.com"]
[Date "2024.01.16"]
[Round "6"]
[White "vova-79"]
[Black "Eloist"]
[Result "1/2-1/2"]
[WhiteElo "2593"]
[BlackElo "2433"]
[TimeControl "180+1"]
[EndTime "15:03:58 PST"]
[Termination "Game drawn by repetition"]

1. d4 {[%clk 0:01:22.5]} 1... e6 {[%clk 0:02:57.3]} 2. c4 {[%clk 0:01:22]} 2...
Nf6 {[%clk 0:02:57.3]} 3. Nc3 {[%clk 0:01:22.2]} 3... Bb4 {[%clk 0:02:57.1]} 4.
e3 {[%clk 0:01:22.6]} 4... O-O {[%clk 0:02:56.3]} 5. Ne2 {[%clk 0:01:22.7]} 5...
c6 {[%clk 0:02:55.8]} 6. a3 {[%clk 0:01:22.9]} 6... Ba5 {[%clk 0:02:55.6]} 7.
Qc2 {[%clk 0:01:22.2]} 7... d5 {[%clk 0:02:55.3]} 8. Ng3 {[%clk 0:01:22.9]} 8...
Nbd7 {[%clk 0:02:53.3]} 9. Be2 {[%clk 0:01:22.7]} 9... e5 {[%clk 0:02:48.2]} 10.
O-O {[%clk 0:01:20.6]} 10... e4 {[%clk 0:02:44]} 11. b4 {[%clk 0:01:12.8]} 11...
Bc7 {[%clk 0:02:43.3]} 12. cxd5 {[%clk 0:01:11.1]} 12... cxd5 {[%clk 0:02:42.8]}
13. Bd2 {[%clk 0:01:03.7]} 13... Nb6 {[%clk 0:02:42.5]} 14. Rac1 {[%clk
0:00:57.2]} 14... Bg4 {[%clk 0:02:36]} 15. Bxg4 {[%clk 0:00:31.4]} 15... Nxg4
{[%clk 0:02:35.5]} 16. Ncxe4 {[%clk 0:00:30.4]} 16... Nc4 {[%clk 0:02:16.3]} 17.
h3 {[%clk 0:00:15.1]} 17... Ngxe3 {[%clk 0:01:25.4]} 18. Bxe3 {[%clk 0:00:09.1]}
18... Rc8 {[%clk 0:01:08.5]} 19. Qe2 {[%clk 0:00:05.4]} 19... Nxe3 {[%clk
0:01:05.7]} 20. fxe3 {[%clk 0:00:05.6]} 20... dxe4 {[%clk 0:01:05.8]} 21. Nxe4
{[%clk 0:00:05.2]} 21... Re8 {[%clk 0:01:05]} 22. Qf3 {[%clk 0:00:05.4]} 22...
Qe7 {[%clk 0:00:58.2]} 23. Nc5 {[%clk 0:00:04.5]} 23... Qxe3+ {[%clk 0:00:46.5]}
24. Qxe3 {[%clk 0:00:04.2]} 24... Rxe3 {[%clk 0:00:47.4]} 25. Nxb7 {[%clk
0:00:04.2]} 25... Ree8 {[%clk 0:00:41.6]} 26. Nc5 {[%clk 0:00:02.8]} 26... Rcd8
{[%clk 0:00:36.9]} 27. Rcd1 {[%clk 0:00:02.2]} 27... Bg3 {[%clk 0:00:30.8]} 28.
Rf3 {[%clk 0:00:01.8]} 28... Bh4 {[%clk 0:00:29.8]} 29. d5 {[%clk 0:00:01.7]}
29... Rd6 {[%clk 0:00:17]} 30. Rfd3 {[%clk 0:00:02.6]} 30... Re5 {[%clk
0:00:12.4]} 31. g3 {[%clk 0:00:03.5]} 31... Bd8 {[%clk 0:00:11.4]} 32. Kg2
{[%clk 0:00:04.2]} 32... Bb6 {[%clk 0:00:11.4]} 33. Kf3 {[%clk 0:00:04.5]} 33...
Kf8 {[%clk 0:00:11.4]} 34. Ne4 {[%clk 0:00:04.3]} 34... Rd8 {[%clk 0:00:10.8]}
35. d6 {[%clk 0:00:04.8]} 35... Rf5+ {[%clk 0:00:10.5]} 36. Kg2 {[%clk
0:00:04.8]} 36... Re5 {[%clk 0:00:09.9]} 37. Kf3 {[%clk 0:00:05]} 37... Rf5+
{[%clk 0:00:10.3]} 38. Kg2 {[%clk 0:00:05.2]} 38... Re5 {[%clk 0:00:10.8]} 39.
Kf3 {[%clk 0:00:05.1]} 1/2-1/2

[Event "Late-Titled-Tuesday-Blitz-January-16-2024"]
[Site "Chess.com"]
[Date "2024.01.16"]
[Round "6"]
[White "Ekko_li"]
[Black "anasta10"]
[Result "1-0"]
[WhiteElo "2707"]
[BlackElo "2533"]
[TimeControl "180+1"]
[EndTime "15:04:00 PST"]
[Termination "Ekko_li won by resignation"]

1. d4 {[%clk 0:03:00.9]} 1... Nf6 {[%clk 0:02:53.6]} 2. Nf3 {[%clk 0:03:00.1]}
2... g6 {[%clk 0:02:53.1]} 3. Bg5 {[%clk 0:02:59.4]} 3... Bg7 {[%clk 0:02:52.9]}
4. Nbd2 {[%clk 0:02:59.3]} 4... d5 {[%clk 0:02:52.2]} 5. e3 {[%clk 0:02:56.5]}
5... O-O {[%clk 0:02:50.5]} 6. c4 {[%clk 0:02:57.1]} 6... dxc4 {[%clk
0:02:47.2]} 7. Bxc4 {[%clk 0:02:56.5]} 7... b6 {[%clk 0:02:47.6]} 8. O-O {[%clk
0:02:54.5]} 8... Bb7 {[%clk 0:02:43.5]} 9. Rc1 {[%clk 0:02:53.9]} 9... Nbd7
{[%clk 0:02:39.1]} 10. Qe2 {[%clk 0:02:44.6]} 10... c5 {[%clk 0:02:38.4]} 11.
Rfd1 {[%clk 0:02:42.9]} 11... Rc8 {[%clk 0:02:37.3]} 12. Ba6 {[%clk 0:02:41.4]}
12... Qc7 {[%clk 0:02:24]} 13. Nb3 {[%clk 0:02:35.8]} 13... Qb8 {[%clk
0:02:11.6]} 14. Bf4 {[%clk 0:02:24.9]} 14... Qa8 {[%clk 0:02:08.6]} 15. Bxb7
{[%clk 0:02:24.9]} 15... Qxb7 {[%clk 0:02:07.7]} 16. dxc5 {[%clk 0:02:25.5]}
16... Nxc5 {[%clk 0:02:07.3]} 17. Nxc5 {[%clk 0:02:24.8]} 17... Rxc5 {[%clk
0:02:06.2]} 18. Rxc5 {[%clk 0:02:23.6]} 18... bxc5 {[%clk 0:02:07.1]} 19. Be5
{[%clk 0:02:21.8]} 19... Rc8 {[%clk 0:02:02.5]} 20. Qc4 {[%clk 0:02:19]} 20...
Ne8 {[%clk 0:01:50.8]} 21. Bxg7 {[%clk 0:02:10]} 21... Kxg7 {[%clk 0:01:51.7]}
22. b3 {[%clk 0:02:07.6]} 22... Nd6 {[%clk 0:01:49.7]} 23. Qh4 {[%clk
0:02:01.2]} 23... f6 {[%clk 0:01:49.2]} 24. Rc1 {[%clk 0:01:52.8]} 24... Qd5
{[%clk 0:01:27.4]} 25. h3 {[%clk 0:01:48.2]} 25... c4 {[%clk 0:01:25.2]} 26.
bxc4 {[%clk 0:01:48.3]} 26... Rxc4 {[%clk 0:01:24.8]} 27. Rxc4 {[%clk 0:01:46]}
27... Nxc4 {[%clk 0:01:22.5]} 28. Nd4 {[%clk 0:01:39.1]} 28... Nd6 {[%clk
0:01:19.9]} 29. a4 {[%clk 0:01:36.3]} 29... a5 {[%clk 0:01:10.3]} 30. Qg4 {[%clk
0:01:34.6]} 30... Kf7 {[%clk 0:01:07.4]} 31. Qd7 {[%clk 0:01:33.6]} 31... Qc4
{[%clk 0:00:57.4]} 32. Nc6 {[%clk 0:01:31.3]} 32... Qe4 {[%clk 0:00:24.5]} 33.
Nxa5 {[%clk 0:01:16.7]} 33... Nf5 {[%clk 0:00:21.6]} 34. Nc6 {[%clk 0:00:49.7]}
34... Kg7 {[%clk 0:00:17.9]} 35. a5 {[%clk 0:00:45.4]} 35... Kh6 {[%clk
0:00:10.1]} 36. a6 {[%clk 0:00:42.2]} 36... Nh4 {[%clk 0:00:05]} 37. Qg4 {[%clk
0:00:38.6]} 37... Qxc6 {[%clk 0:00:05.2]} 38. Qxh4+ {[%clk 0:00:38.6]} 38... Kg7
{[%clk 0:00:05.9]} 39. a7 {[%clk 0:00:34.6]} 39... Qc1+ {[%clk 0:00:04.8]} 40.
Kh2 {[%clk 0:00:34.5]} 40... Qa3 {[%clk 0:00:04.7]} 41. Qd4 {[%clk 0:00:34.1]}
41... h5 {[%clk 0:00:03.3]} 42. Qb6 {[%clk 0:00:32.5]} 42... Kf7 {[%clk
0:00:03]} 43. Qc7 {[%clk 0:00:30.9]} 43... Qa6 {[%clk 0:00:02.4]} 44. Qb8 {[%clk
0:00:30.8]} 1-0

[Event "Late-Titled-Tuesday-Blitz-January-16-2024"]
[Site "Chess.com"]
[Date "2024.01.16"]
[Round "6"]
[White "sebastianmarinp"]
[Black "APOKALIPSA13"]
[Result "0-1"]
[WhiteElo "2420"]
[BlackElo "2177"]
[TimeControl "180+1"]
[EndTime "15:04:01 PST"]
[Termination "APOKALIPSA13 won by resignation"]

1. d4 {[%clk 0:03:00.9]} 1... e5 {[%clk 0:03:00.5]} 2. dxe5 {[%clk 0:03:00.2]}
2... Nc6 {[%clk 0:03:00.9]} 3. Nf3 {[%clk 0:02:59.4]} 3... Qe7 {[%clk
0:03:01.3]} 4. Nc3 {[%clk 0:02:54.7]} 4... Nxe5 {[%clk 0:03:01]} 5. Nd4 {[%clk
0:02:49.4]} 5... c6 {[%clk 0:02:59.4]} 6. e4 {[%clk 0:02:43.2]} 6... d5 {[%clk
0:02:58.4]} 7. Be2 {[%clk 0:02:42.6]} 7... dxe4 {[%clk 0:02:54.2]} 8. Nxe4
{[%clk 0:02:41.7]} 8... Nf6 {[%clk 0:02:50.3]} 9. Ng3 {[%clk 0:02:32.4]} 9...
Qb4+ {[%clk 0:02:43.4]} 10. c3 {[%clk 0:02:29]} 10... Qb6 {[%clk 0:02:42.6]} 11.
O-O {[%clk 0:02:26.4]} 11... Be7 {[%clk 0:02:37.6]} 12. Ndf5 {[%clk 0:02:11.6]}
12... Qc7 {[%clk 0:01:54.6]} 13. Nxg7+ {[%clk 0:01:55.5]} 13... Kf8 {[%clk
0:01:53.8]} 14. Bh6 {[%clk 0:01:56.4]} 14... Kg8 {[%clk 0:01:53.4]} 15. N7f5
{[%clk 0:01:42.8]} 15... Bf8 {[%clk 0:01:48]} 16. Bxf8 {[%clk 0:01:18.2]} 16...
Kxf8 {[%clk 0:01:45.9]} 17. Qd4 {[%clk 0:01:13.1]} 17... h5 {[%clk 0:01:21.4]}
18. f4 {[%clk 0:01:02.4]} 18... Ned7 {[%clk 0:01:12.8]} 19. Kh1 {[%clk
0:00:33.6]} 19... c5 {[%clk 0:01:08.1]} 20. Qd1 {[%clk 0:00:23.2]} 20... h4
{[%clk 0:01:06.5]} 21. Nh5 {[%clk 0:00:21.9]} 21... Nxh5 {[%clk 0:01:03.6]} 22.
Bxh5 {[%clk 0:00:22.8]} 22... Nf6 {[%clk 0:01:03.5]} 23. Bg4 {[%clk 0:00:20.5]}
23... Nxg4 {[%clk 0:00:48]} 24. Qxg4 {[%clk 0:00:21.4]} 24... Rg8 {[%clk
0:00:34.1]} 25. Qh5 {[%clk 0:00:21.1]} 25... Qc6 {[%clk 0:00:24]} 26. Ne3 {[%clk
0:00:16.8]} 26... Be6 {[%clk 0:00:17.4]} 27. Rad1 {[%clk 0:00:14.9]} 27... Re8
{[%clk 0:00:16.8]} 28. f5 {[%clk 0:00:13.1]} 28... Bc4 {[%clk 0:00:14.7]} 29.
Qf3 {[%clk 0:00:10.5]} 29... Rxe3 {[%clk 0:00:12.2]} 30. Qxc6 {[%clk 0:00:08.2]}
30... bxc6 {[%clk 0:00:12.5]} 31. Rd8+ {[%clk 0:00:08.4]} 31... Re8 {[%clk
0:00:11.3]} 32. Rxe8+ {[%clk 0:00:05.4]} 32... Kxe8 {[%clk 0:00:12.2]} 33. Re1+
{[%clk 0:00:04.9]} 33... Kd7 {[%clk 0:00:11.6]} 34. Re4 {[%clk 0:00:05.1]} 34...
Bd5 {[%clk 0:00:11.5]} 35. Rxh4 {[%clk 0:00:05.3]} 35... Rxg2 {[%clk 0:00:11.3]}
36. c4 {[%clk 0:00:04.9]} 36... Rg4+ {[%clk 0:00:11]} 0-1

[Event "Late-Titled-Tuesday-Blitz-January-16-2024"]
[Site "Chess.com"]
[Date "2024.01.16"]
[Round "6"]
[White "iwanyu"]
[Black "jcibarra"]
[Result "1-0"]
[WhiteElo "2685"]
[BlackElo "2869"]
[TimeControl "180+1"]
[EndTime "15:04:04 PST"]
[Termination "iwanyu won on time"]

1. d4 {[%clk 0:02:59]} 1... d6 {[%clk 0:02:59.2]} 2. Nf3 {[%clk 0:02:56.7]} 2...
Nf6 {[%clk 0:02:58]} 3. g3 {[%clk 0:02:56.8]} 3... Nbd7 {[%clk 0:02:56.7]} 4. c4
{[%clk 0:02:55.4]} 4... e5 {[%clk 0:02:57.2]} 5. Nc3 {[%clk 0:02:54.6]} 5... c6
{[%clk 0:02:55.6]} 6. e4 {[%clk 0:02:53.1]} 6... Be7 {[%clk 0:02:55.7]} 7. Bg2
{[%clk 0:02:53]} 7... O-O {[%clk 0:02:56.4]} 8. O-O {[%clk 0:02:53.2]} 8... a6
{[%clk 0:02:57.1]} 9. h3 {[%clk 0:02:39.8]} 9... b5 {[%clk 0:02:45.7]} 10. c5
{[%clk 0:02:39.8]} 10... Qc7 {[%clk 0:02:38.7]} 11. cxd6 {[%clk 0:02:28.6]}
11... Bxd6 {[%clk 0:02:38.7]} 12. Bg5 {[%clk 0:02:15]} 12... h6 {[%clk
0:01:56.9]} 13. dxe5 {[%clk 0:01:56.9]} 13... Bxe5 {[%clk 0:01:47.3]} 14. Nxe5
{[%clk 0:01:56.3]} 14... Nxe5 {[%clk 0:01:35.7]} 15. Bf4 {[%clk 0:01:38.3]}
15... Re8 {[%clk 0:01:33.1]} 16. Rc1 {[%clk 0:01:34.8]} 16... Qe7 {[%clk
0:01:29.2]} 17. Bxe5 {[%clk 0:01:29.1]} 17... Qxe5 {[%clk 0:01:28.2]} 18. f4
{[%clk 0:01:30]} 18... Qc5+ {[%clk 0:01:11.9]} 19. Kh2 {[%clk 0:01:29.1]} 19...
Be6 {[%clk 0:00:36.6]} 20. e5 {[%clk 0:01:28.4]} 20... Nd7 {[%clk 0:00:27.6]}
21. Ne4 {[%clk 0:01:26.5]} 21... Qb4 {[%clk 0:00:24.7]} 22. Nd6 {[%clk
0:01:21.6]} 22... Red8 {[%clk 0:00:22.6]} 23. b3 {[%clk 0:01:10.7]} 23... Qa5
{[%clk 0:00:13]} 24. Qe2 {[%clk 0:01:05.4]} 24... Rab8 {[%clk 0:00:06.3]} 25. f5
{[%clk 0:01:01.6]} 25... Bd5 {[%clk 0:00:06.3]} 26. Bxd5 {[%clk 0:01:01.1]}
26... cxd5 {[%clk 0:00:07.2]} 27. e6 {[%clk 0:00:58]} 27... Nf6 {[%clk
0:00:05.2]} 28. Nxf7 {[%clk 0:00:54.1]} 28... Re8 {[%clk 0:00:04.7]} 29. Rc2
{[%clk 0:00:47.8]} 29... b4 {[%clk 0:00:02.7]} 30. Qe5 {[%clk 0:00:45.7]} 30...
Rbc8 {[%clk 0:00:02.6]} 31. Rfc1 {[%clk 0:00:42.6]} 31... Rxc2+ {[%clk
0:00:02.3]} 32. Rxc2 {[%clk 0:00:43.5]} 32... Qb5 {[%clk 0:00:02.3]} 33. Nxh6+
{[%clk 0:00:40.4]} 33... Kh7 {[%clk 0:00:03]} 34. Nf7 {[%clk 0:00:39.3]} 34...
Qd3 {[%clk 0:00:02.1]} 35. Rg2 {[%clk 0:00:36.5]} 35... Rc8 {[%clk 0:00:02]} 36.
e7 {[%clk 0:00:33.7]} 36... Qc3 {[%clk 0:00:01.2]} 37. Ng5+ {[%clk 0:00:28.4]}
37... Kh8 {[%clk 0:00:01.4]} 38. Qe6 {[%clk 0:00:27.2]} 38... Qc6 {[%clk
0:00:01.2]} 39. Nf7+ {[%clk 0:00:26.4]} 39... Kh7 {[%clk 0:00:01]} 40. Nd6
{[%clk 0:00:22.3]} 40... Rb8 {[%clk 0:00:01.3]} 41. g4 {[%clk 0:00:17.4]} 41...
d4 {[%clk 0:00:01.7]} 42. g5 {[%clk 0:00:16.7]} 42... d3 {[%clk 0:00:01.4]} 43.
gxf6 {[%clk 0:00:14.4]} 1-0

[Event "Late-Titled-Tuesday-Blitz-January-16-2024"]
[Site "Chess.com"]
[Date "2024.01.16"]
[Round "6"]
[White "SchmakAttack"]
[Black "Bauman_Guy"]
[Result "1-0"]
[WhiteElo "2745"]
[BlackElo "2897"]
[TimeControl "180+1"]
[EndTime "15:04:06 PST"]
[Termination "SchmakAttack won by checkmate"]

1. e4 {[%clk 0:02:59.3]} 1... c5 {[%clk 0:03:00]} 2. Nf3 {[%clk 0:02:57]} 2...
d6 {[%clk 0:03:00.4]} 3. d4 {[%clk 0:02:56.8]} 3... Nf6 {[%clk 0:03:00.9]} 4.
Nc3 {[%clk 0:02:56.5]} 4... cxd4 {[%clk 0:03:01.1]} 5. Nxd4 {[%clk 0:02:57.4]}
5... a6 {[%clk 0:03:01.7]} 6. Bg5 {[%clk 0:02:56.5]} 6... Nbd7 {[%clk
0:03:01.7]} 7. Qe2 {[%clk 0:02:56.1]} 7... h6 {[%clk 0:03:01.8]} 8. Bh4 {[%clk
0:02:55.9]} 8... g6 {[%clk 0:03:01.6]} 9. f4 {[%clk 0:02:54.2]} 9... e5 {[%clk
0:03:01.7]} 10. fxe5 {[%clk 0:02:54.3]} 10... dxe5 {[%clk 0:03:02.6]} 11. Nb3
{[%clk 0:02:51.5]} 11... Qc7 {[%clk 0:03:01.3]} 12. Qf3 {[%clk 0:02:44.5]} 12...
Bg7 {[%clk 0:02:16.7]} 13. Be2 {[%clk 0:02:31.4]} 13... b5 {[%clk 0:02:15.3]}
14. O-O {[%clk 0:02:27.5]} 14... Bb7 {[%clk 0:02:12.7]} 15. Rad1 {[%clk
0:02:11.6]} 15... O-O {[%clk 0:02:11.2]} 16. a3 {[%clk 0:02:03.9]} 16... Rac8
{[%clk 0:02:00.2]} 17. Rd2 {[%clk 0:01:52.1]} 17... Qb6+ {[%clk 0:01:58.8]} 18.
Bf2 {[%clk 0:01:52.1]} 18... Qe6 {[%clk 0:01:55.8]} 19. Nd5 {[%clk 0:01:34]}
19... Nxd5 {[%clk 0:01:46.4]} 20. exd5 {[%clk 0:01:34.9]} 20... Qd6 {[%clk
0:01:43.9]} 21. Na5 {[%clk 0:01:27.5]} 21... Ba8 {[%clk 0:01:43.3]} 22. c4
{[%clk 0:01:23.1]} 22... Nf6 {[%clk 0:01:26.7]} 23. b4 {[%clk 0:00:55.4]} 23...
Qd7 {[%clk 0:01:01.5]} 24. Rfd1 {[%clk 0:00:48.1]} 24... bxc4 {[%clk 0:01:00]}
25. Nxc4 {[%clk 0:00:48.2]} 25... e4 {[%clk 0:00:59.5]} 26. Qe3 {[%clk
0:00:42.4]} 26... Nxd5 {[%clk 0:00:54.6]} 27. Rxd5 {[%clk 0:00:39.7]} 27... Bxd5
{[%clk 0:00:54.4]} 28. Nb6 {[%clk 0:00:40.1]} 28... Qe6 {[%clk 0:00:51.8]} 29.
Nxd5 {[%clk 0:00:17]} 29... Rc2 {[%clk 0:00:51.5]} 30. Nf4 {[%clk 0:00:10.5]}
30... Qa2 {[%clk 0:00:49.1]} 31. Qxe4 {[%clk 0:00:08.9]} 31... Rfc8 {[%clk
0:00:44.4]} 32. Bd4 {[%clk 0:00:08.6]} 32... Bxd4+ {[%clk 0:00:34.1]} 33. Rxd4
{[%clk 0:00:09.5]} 33... Rc1+ {[%clk 0:00:22.2]} 34. Kf2 {[%clk 0:00:09.5]}
34... Qxa3 {[%clk 0:00:22.6]} 35. Nxg6 {[%clk 0:00:08.1]} 35... Qc3 {[%clk
0:00:18.4]} 36. Ne7+ {[%clk 0:00:07.5]} 36... Kf8 {[%clk 0:00:18.8]} 37. Nxc8
{[%clk 0:00:07.5]} 37... Qe1+ {[%clk 0:00:18.8]} 38. Kf3 {[%clk 0:00:07.4]}
38... Rc3+ {[%clk 0:00:17.2]} 39. Rd3 {[%clk 0:00:06.6]} 39... Rxc8 {[%clk
0:00:17.4]} 40. Qe5 {[%clk 0:00:06.1]} 40... Rc6 {[%clk 0:00:11.4]} 41. Rd8#
{[%clk 0:00:05.8]} 1-0

[Event "Late-Titled-Tuesday-Blitz-January-16-2024"]
[Site "Chess.com"]
[Date "2024.01.16"]
[Round "6"]
[White "Beca95"]
[Black "Russian_berezka"]
[Result "1-0"]
[WhiteElo "2946"]
[BlackElo "2590"]
[TimeControl "180+1"]
[EndTime "15:04:06 PST"]
[Termination "Beca95 won by resignation"]

1. e4 {[%clk 0:03:00.9]} 1... g6 {[%clk 0:02:59.8]} 2. d4 {[%clk 0:03:00]} 2...
Bg7 {[%clk 0:03:00.5]} 3. Nc3 {[%clk 0:03:00.3]} 3... d5 {[%clk 0:03:00.9]} 4.
Nxd5 {[%clk 0:02:56.3]} 4... c6 {[%clk 0:03:01.3]} 5. Nf4 {[%clk 0:02:39.6]}
5... Qxd4 {[%clk 0:03:01.6]} 6. Qxd4 {[%clk 0:02:38.8]} 6... Bxd4 {[%clk
0:03:02.5]} 7. Nf3 {[%clk 0:02:39.2]} 7... Bg7 {[%clk 0:03:02.4]} 8. Bc4 {[%clk
0:02:26.3]} 8... e5 {[%clk 0:02:45.9]} 9. Nd3 {[%clk 0:02:10.6]} 9... f6 {[%clk
0:02:46.1]} 10. a4 {[%clk 0:02:07.9]} 10... Nh6 {[%clk 0:02:42.6]} 11. a5 {[%clk
0:02:06.4]} 11... Nf7 {[%clk 0:02:38.9]} 12. Nd2 {[%clk 0:02:02.5]} 12... Nd6
{[%clk 0:02:26.3]} 13. Bb3 {[%clk 0:02:02.4]} 13... Na6 {[%clk 0:02:21.1]} 14.
f3 {[%clk 0:02:01.7]} 14... Ke7 {[%clk 0:02:19.1]} 15. Nc4 {[%clk 0:02:01.1]}
15... Be6 {[%clk 0:02:15.3]} 16. Nxd6 {[%clk 0:02:00]} 16... Bxb3 {[%clk
0:02:11.3]} 17. Nxb7 {[%clk 0:01:46.3]} 17... Bxc2 {[%clk 0:01:58.2]} 18. Ndc5
{[%clk 0:01:44.9]} 18... Nxc5 {[%clk 0:01:28.6]} 19. Nxc5 {[%clk 0:01:45.8]}
19... Rab8 {[%clk 0:01:29.2]} 20. Kd2 {[%clk 0:01:32.4]} 20... Bb3 {[%clk
0:01:28.7]} 21. Kc3 {[%clk 0:01:32.3]} 21... Bf7 {[%clk 0:01:24.2]} 22. b3
{[%clk 0:01:31.7]} 22... Be6 {[%clk 0:01:04.5]} 23. Be3 {[%clk 0:01:25.3]} 23...
Bc8 {[%clk 0:00:36.2]} 24. Rhd1 {[%clk 0:01:21.2]} 24... a6 {[%clk 0:00:36.2]}
25. Na4 {[%clk 0:01:18.3]} 25... Rd8 {[%clk 0:00:33]} 26. Bc5+ {[%clk
0:01:16.5]} 26... Ke8 {[%clk 0:00:33.4]} 27. Rxd8+ {[%clk 0:01:15.9]} 27... Kxd8
{[%clk 0:00:34.3]} 28. Rd1+ {[%clk 0:01:15.7]} 28... Ke8 {[%clk 0:00:34.9]} 29.
Bd6 {[%clk 0:01:10.7]} 29... Rb5 {[%clk 0:00:32.2]} 30. b4 {[%clk 0:01:10.4]}
30... f5 {[%clk 0:00:11.3]} 31. Nc5 {[%clk 0:01:00.3]} 31... fxe4 {[%clk
0:00:10.4]} 32. fxe4 {[%clk 0:01:00.6]} 32... Bf6 {[%clk 0:00:06.1]} 33. h3
{[%clk 0:00:45.8]} 33... Be7 {[%clk 0:00:06.5]} 34. g4 {[%clk 0:00:34.5]} 34...
Bxd6 {[%clk 0:00:03.2]} 35. Rxd6 {[%clk 0:00:35.4]} 35... Rb8 {[%clk 0:00:03.7]}
36. Rxc6 {[%clk 0:00:35.3]} 36... Ke7 {[%clk 0:00:04.2]} 37. Nxa6 {[%clk
0:00:34.5]} 37... Ra8 {[%clk 0:00:02]} 38. Nc5 {[%clk 0:00:34.1]} 38... Ra7
{[%clk 0:00:01.9]} 39. a6 {[%clk 0:00:33]} 39... Bd7 {[%clk 0:00:01.1]} 40. Nxd7
{[%clk 0:00:32.9]} 40... Kxd7 {[%clk 0:00:02]} 41. b5 {[%clk 0:00:33.5]} 41...
Ra8 {[%clk 0:00:02]} 42. Kb4 {[%clk 0:00:33.4]} 42... Rf8 {[%clk 0:00:02.3]} 43.
Rc3 {[%clk 0:00:32.6]} 43... Rf1 {[%clk 0:00:02.2]} 44. a7 {[%clk 0:00:32.6]}
44... Rb1+ {[%clk 0:00:02.8]} 45. Rb3 {[%clk 0:00:33]} 45... Ra1 {[%clk
0:00:03.2]} 46. Ra3 {[%clk 0:00:33.4]} 46... Rxa3 {[%clk 0:00:03.5]} 47. Kxa3
{[%clk 0:00:33]} 47... Kc7 {[%clk 0:00:04.4]} 48. a8=Q {[%clk 0:00:32.7]} 48...
Kb6 {[%clk 0:00:04.9]} 49. Qc6+ {[%clk 0:00:32.4]} 49... Ka7 {[%clk 0:00:05.2]}
50. Qc7+ {[%clk 0:00:30.2]} 50... Ka8 {[%clk 0:00:05.3]} 51. b6 {[%clk
0:00:30.8]} 1-0